bitfinex-derivatives/quotes_BTCF0:USTF0_20241217
["timestamp","ask_amount","ask_price","bid_price","bid_amount"]
[1734434696844,0.52301997,107150.0,107140.0,0.04676514]
[1734434700939,0.55311997,107150.0,107140.0,0.04676514]
[1734434702248,0.50645497,107150.0,107140.0,0.05550871]
[1734434702847,0.55312197,107150.0,107140.0,0.05550871]
[1734434703052,0.60797694,107150.0,107140.0,9.614e-05]
[1734434703645,0.60797694,107150.0,107140.0,0.00883971]
[1734434703947,0.60797694,107150.0,107140.0,9.614e-05]
[1734434704455,0.60797694,107150.0,107140.0,0.00883971]
[1734434705147,0.60797694,107150.0,107140.0,9.614e-05]
[1734434705955,0.60797694,107150.0,107110.0,0.10623347]
[1734434705956,0.046674,107130.0,107110.0,0.10623347]
[1734434706155,0.49293397,107120.0,107110.0,0.11317306]
[1734434706450,0.54778894,107120.0,107110.0,0.09496416]
[1734434706840,0.54778894,107120.0,107110.0,0.09508087]
[1734434706841,0.49293397,107120.0,107110.0,0.09508087]
[1734434707047,0.54778894,107120.0,107110.0,0.09508087]
[1734434707257,0.49293397,107120.0,107110.0,0.09508087]
[1734434707455,0.49293397,107120.0,107110.0,0.0863373]
[1734434707660,0.54778894,107120.0,107110.0,0.0863373]
[1734434708061,0.49293397,107120.0,107110.0,0.0863373]
[1734434708562,0.54778894,107120.0,107110.0,0.0863373]
[1734434708858,0.49293397,107120.0,107110.0,0.0863373]
[1734434710446,0.54778894,107120.0,107110.0,0.00011671]
[1734434710646,0.60264391,107120.0,107110.0,0.00011671]
[1734434710846,0.54778894,107120.0,107110.0,0.00011671]
[1734434711356,0.60264391,107120.0,107110.0,0.00011671]
[1734434712255,0.54778894,107120.0,107110.0,0.00011671]
[1734434713760,0.60264391,107120.0,107110.0,0.00011671]
[1734434714656,0.90264391,107120.0,107110.0,0.00011671]
[1734434715252,0.54778894,107120.0,107110.0,0.00011671]
[1734434716559,0.438079,107120.0,107110.0,0.00011671]
[1734434716760,0.54778894,107120.0,107110.0,0.00011671]
[1734434717264,0.58666137,107120.0,107110.0,0.00011671]
[1734434718259,0.438079,107120.0,107110.0,0.00011671]
[1734434718455,0.54778894,107120.0,107110.0,0.00011671]
[1734434733470,0.49293397,107120.0,107110.0,0.00011671]
[1734434733672,0.54778894,107120.0,107110.0,0.00011671]
[1734434733874,0.49293397,107120.0,107110.0,0.00011671]
[1734434734177,0.54778894,107120.0,107110.0,0.00011671]
[1734434737869,0.54778894,107120.0,107110.0,0.04679971]
[1734434740473,0.407479,107120.0,107110.0,0.11039825]
[1734434740671,0.407479,107120.0,107110.0,0.20579825]
[1734434740871,0.407479,107120.0,107110.0,0.24320122]
[1734434741579,0.407479,107120.0,107110.0,0.18834625]
[1734434743083,0.3549876,107120.0,107110.0,0.75377685]
[1734434743383,0.50843122,107130.0,107120.0,0.046679]
[1734434743384,0.40759189,107130.0,107120.0,0.046679]
[1734434743577,0.00011489,107130.0,107120.0,0.10153397]
[1734434743886,0.00011489,107130.0,107120.0,0.658221]
[1734434746489,0.00011489,107130.0,107120.0,0.10153397]
[1734434746976,0.04678889,107130.0,107120.0,0.10153397]
[1734434747283,0.00011489,107130.0,107120.0,0.10153397]
[1734434748981,0.00011489,107130.0,107120.0,0.65892408]
[1734434749581,0.00011489,107130.0,107120.0,0.10153397]
[1734434750084,0.00011489,107130.0,107120.0,0.65892408]
[1734434750390,0.00011489,107130.0,107120.0,0.10153397]
[1734434750875,0.00011489,107130.0,107120.0,0.46233397]
[1734434751274,0.00011489,107130.0,107120.0,0.10153397]
[1734434756184,0.00011489,107130.0,107120.0,0.48130759]
[1734434757789,0.00011489,107130.0,107120.0,0.12050759]
[1734434758088,0.3608,107150.0,107140.0,0.04667]
[1734434758293,0.3608,107160.0,107150.0,0.046665]
[1734434758495,0.3608,107160.0,107150.0,0.10151997]
[1734434759190,0.41565497,107160.0,107150.0,0.046665]
[1734434762692,0.41565497,107160.0,107150.0,0.10151997]
[1734434763288,0.41565497,107160.0,107150.0,0.046665]
[1734434763289,0.46231597,107160.0,107150.0,0.046665]
[1734434763788,0.46231597,107160.0,107150.0,0.08599988]
[1734434782517,0.10151597,107160.0,107150.0,0.08599988]
[1734434782714,0.46231597,107160.0,107150.0,0.08599988]
[1734434783104,0.407461,107160.0,107150.0,0.05485497]
[1734434783403,0.407461,107160.0,107150.0,0.046665]
[1734434784110,0.407461,107160.0,107150.0,0.10151997]
[1734434785114,0.3608,107160.0,107150.0,0.10151997]
[1734434785304,0.3608,107160.0,107150.0,0.16501997]
[1734434787414,0.3608,107160.0,107150.0,0.19858067]
[1734434787802,0.503659,107170.0,107160.0,0.046661]
[1734434788006,0.503659,107170.0,107160.0,0.10151597]
[1734434789516,0.55851397,107170.0,107160.0,0.046661]
[1734434791703,1.02082594,107170.0,107150.0,0.046664]
[1734434791908,0.47050994,107160.0,107150.0,0.046664]
[1734434793016,0.51717094,107160.0,107150.0,0.046664]
[1734434794706,0.61868691,107160.0,107140.0,0.05541345]
[1734434794914,0.55801997,107150.0,107140.0,0.05541345]
[1734434795218,0.55801997,107150.0,107140.0,0.61300389]
[1734434795512,0.55801997,107150.0,107140.0,0.046669]
[1734434796107,0.55801997,107150.0,107130.0,0.59039672]
[1734434796415,0.46232497,107140.0,107130.0,0.63706872]
[1734434797316,0.46232497,107140.0,107130.0,0.07947828]
[1734434798211,0.46232497,107140.0,107130.0,0.63706872]
[1734434799418,0.46232497,107140.0,107130.0,0.07947828]
[1734434800623,0.46232497,107140.0,107130.0,0.63706872]
[1734434802420,0.40747,107140.0,107130.0,0.69192369]
[1734434804728,0.40747,107140.0,107130.0,0.63706872]
[1734434805231,0.46232497,107140.0,107130.0,0.07947828]
[1734434805519,0.46232497,107140.0,107130.0,0.64581317]
[1734434805714,0.46232497,107140.0,107130.0,0.63706872]
[1734434807013,0.51717994,107140.0,107120.0,0.08842045]
[1734434807212,0.46232897,107130.0,107120.0,0.63726644]
[1734434807417,0.46232897,107130.0,107120.0,0.60426644]
[1734434808822,0.46232897,107130.0,107120.0,0.046676]
[1734434809824,0.46232897,107130.0,107120.0,0.08843104]
[1734434811518,0.046679,107120.0,107110.0,0.12638938]
[1734434811824,0.46233397,107120.0,107110.0,0.12638938]
[1734434812824,0.10153397,107120.0,107110.0,0.12638938]
[1734434813217,0.046679,107120.0,107110.0,0.2223351]
[1734434813527,0.46233397,107120.0,107110.0,0.16748013]
[1734434815519,0.46233397,107120.0,107110.0,0.08788846]
[1734434816623,0.46233397,107120.0,107110.0,0.09663291]
[1734434816819,0.46233397,107120.0,107110.0,0.6454789]
[1734434817127,0.51718894,107120.0,107110.0,0.5987979]
[1734434817321,0.46233397,107120.0,107110.0,0.04120746]
[1734434817517,0.51718894,107120.0,107110.0,0.04120746]
[1734434817719,0.46233397,107120.0,107110.0,0.04120746]
[1734434818422,0.51718894,107120.0,107110.0,0.54243982]
[1734434819019,0.51718894,107120.0,107110.0,0.54247856]
[1734434819223,0.51718894,107120.0,107110.0,0.04120746]
[1734434820233,0.46233397,107120.0,107110.0,0.04120746]
[1734434820426,0.46233397,107120.0,107110.0,0.5987979]
[1734434820926,0.46233397,107120.0,107110.0,0.5426479]
[1734434821127,0.46233397,107120.0,107110.0,0.5893309]
[1734434821331,0.46233397,107120.0,107110.0,0.08789046]
[1734434821533,0.407479,107120.0,107110.0,0.08789046]
[1734434821832,0.46233397,107120.0,107110.0,0.08789046]
[1734434823331,0.46233397,107120.0,107110.0,0.6454809]
[1734434824331,0.46233397,107120.0,107110.0,0.47969867]
[1734434825033,0.46233397,107120.0,107110.0,0.52638167]
[1734434825333,0.46233397,107120.0,107110.0,0.52647114]
[1734434826927,0.46233397,107120.0,107110.0,0.5676567]
[1734434828339,0.46233397,107120.0,107110.0,0.08795803]
[1734434829232,0.51718894,107120.0,107110.0,0.08795803]
[1734434829532,0.51718894,107120.0,107110.0,8.947e-05]
[1734434829732,0.46718894,107120.0,107110.0,8.947e-05]
[1734434830032,0.51386794,107120.0,107110.0,8.947e-05]
[1734434830933,0.45901297,107120.0,107110.0,0.04677247]
[1734434833536,0.45901297,107120.0,107110.0,0.6043763]
[1734434833739,0.45901297,107120.0,107110.0,0.04677247]
[1734434834240,0.51386794,107120.0,107110.0,0.04677247]
[1734434834537,0.45901297,107120.0,107110.0,0.04677247]
[1734434834739,0.51386794,107120.0,107110.0,0.04677247]
[1734434835335,0.51386794,107120.0,107110.0,0.61312075]
[1734434835839,0.51386794,107120.0,107110.0,0.6043763]
[1734434836039,0.51386794,107120.0,107110.0,0.04677247]
[1734434836337,0.51386794,107120.0,107110.0,8.947e-05]
[1734434841944,0.55642207,107120.0,107110.0,8.947e-05]
[1734434844244,0.55974307,107120.0,107110.0,8.947e-05]
[1734434846548,0.55974307,107120.0,107110.0,0.56643775]
[1734434847147,0.55974307,107120.0,107110.0,8.947e-05]
[1734434854955,0.45003313,107120.0,107110.0,8.947e-05]
[1734434855263,0.5048881,107120.0,107110.0,8.947e-05]
[1734434855466,0.55974307,107120.0,107110.0,8.947e-05]
[1734434855853,0.5048881,107120.0,107110.0,8.947e-05]
[1734434856053,0.55974307,107120.0,107110.0,8.947e-05]
[1734434857259,0.5048881,107120.0,107110.0,8.947e-05]
[1734434857461,0.55974307,107120.0,107110.0,8.947e-05]
[1734434859162,0.5048881,107120.0,107110.0,0.04677247]
[1734434859367,0.55974307,107120.0,107110.0,0.04677247]
[1734434860257,0.046679,107120.0,107110.0,0.10162744]
[1734434860473,0.4567,107130.0,107120.0,0.046676]
[1734434860474,0.046676,107130.0,107120.0,0.046676]
[1734434860659,0.407472,107140.0,107130.0,0.046671]
[1734434860660,0.046671,107140.0,107130.0,0.046671]
[1734434860968,0.10152597,107140.0,107130.0,0.046671]
[1734434861460,0.10152597,107140.0,107130.0,0.10152597]
[1734434861461,0.046671,107140.0,107130.0,0.10152597]
[1734434861651,0.046671,107140.0,107130.0,0.13332597]
[1734434861856,0.046671,107140.0,107130.0,0.7555598]
[1734434862559,0.10152597,107140.0,107130.0,0.70070483]
[1734434863166,0.10152597,107140.0,107130.0,1.06150483]
[1734434863374,0.10152597,107140.0,107130.0,0.70070483]
[1734434863758,0.0490501,107140.0,107130.0,0.08721545]
[1734434863959,0.0957211,107140.0,107130.0,0.08721545]
[1734434864166,0.046671,107140.0,107130.0,0.078471]
[1734434864458,0.046671,107140.0,107130.0,0.439271]
[1734434864658,0.046671,107140.0,107130.0,0.078471]
[1734434865063,0.10152597,107140.0,107130.0,0.078471]
[1734434865855,0.10152597,107140.0,107130.0,0.439271]
[1734434866160,0.3608,107150.0,107130.0,0.439271]
[1734434866161,0.407467,107150.0,107130.0,0.439271]
[1734434866355,0.407467,107150.0,107140.0,0.04667]
[1734434866558,0.407467,107150.0,107140.0,0.11207]
[1734434866970,0.3608,107150.0,107140.0,0.11207]
[1734434868372,0.46231797,107160.0,107140.0,0.11207]
[1734434868670,0.46231797,107160.0,107150.0,0.046665]
[1734434869973,0.51717294,107160.0,107150.0,0.046665]
[1734434875269,0.046665,107150.0,107140.0,0.046669]
[1734434875578,0.61377494,107150.0,107140.0,0.046669]
[1734434875769,0.046674,107140.0,107130.0,0.046673]
[1734434875968,0.51718394,107140.0,107120.0,0.0326]
[1734434876170,0.10152897,107130.0,107120.0,0.079275]
[1734434876473,0.10152897,107130.0,107120.0,0.12689843]
[1734434880571,0.46232897,107130.0,107120.0,0.079275]
[1734434880966,0.046679,107120.0,107110.0,1.26256421]
[1734434881171,0.05485497,107120.0,107110.0,0.64907483]
[1734434881373,0.10153397,107120.0,107110.0,0.64907483]
[1734434881573,0.046679,107120.0,107110.0,0.1483663]
[1734434881778,0.046679,107120.0,107110.0,0.7039298]
[1734434881972,0.10153397,107120.0,107110.0,0.64907483]
[1734434882175,0.046679,107120.0,107110.0,0.7039298]
[1734434882570,0.046679,107120.0,107110.0,0.64907483]
[1734434883370,0.10153397,107120.0,107110.0,0.64907483]
[1734434883974,0.46233197,107130.0,107120.0,0.046679]
[1734434885074,0.49243197,107130.0,107120.0,0.046679]
[1734434886780,0.49243197,107130.0,107110.0,0.09351133]
[1734434886781,0.046679,107120.0,107110.0,0.09351133]
[1734434886980,0.10153397,107120.0,107110.0,0.09351133]
[1734434888376,0.046679,107120.0,107110.0,0.09351133]
[1734434890303,0.10153397,107120.0,107110.0,0.64907483]
[1734434890580,0.10153397,107120.0,107110.0,0.10225743]
[1734434890581,0.09572619,107120.0,107110.0,0.10225743]
[1734434891087,0.09572619,107120.0,107110.0,0.71522757]
[1734434892283,0.45652619,107120.0,107110.0,0.71522757]
[1734434892684,0.45652619,107120.0,107110.0,0.65073254]
[1734434892886,0.45652619,107120.0,107110.0,0.71522757]
[1734434893084,0.45652619,107120.0,107110.0,1.2724529]
[1734434893294,0.45652619,107120.0,107110.0,1.2637068]
[1734434893880,0.45652619,107120.0,107110.0,0.66848571]
[1734434894292,0.45652619,107120.0,107110.0,0.65973961]
[1734434894780,0.51138116,107120.0,107110.0,1.21698576]
[1734434894980,0.51138116,107120.0,107110.0,0.65973961]
[1734434895284,0.54168116,107120.0,107110.0,1.21691897]
[1734434895484,0.54168116,107120.0,107110.0,0.60394883]
[1734434895681,0.49263397,107120.0,107110.0,0.60394883]
[1734434896088,0.49263397,107120.0,107110.0,0.04676947]
[1734434896089,0.46233397,107120.0,107110.0,0.04676947]
[1734434899493,0.51718894,107120.0,107110.0,0.04676947]
[1734434900087,0.46233397,107120.0,107110.0,0.04676947]
[1734434904788,0.51718894,107120.0,107110.0,0.6126974]
[1734434905190,0.51718894,107120.0,107110.0,1.22566754]
[1734434906497,0.46233397,107120.0,107110.0,1.22566754]
[1734434906692,0.46233397,107120.0,107110.0,0.66848818]
[1734434906899,0.51718894,107120.0,107110.0,0.66848818]
[1734434907288,0.54918894,107120.0,107110.0,1.22647752]
[1734434907581,0.54918894,107120.0,107110.0,0.61350739]
[1734434907789,0.54918894,107120.0,107110.0,0.05551804]
[1734434907986,0.54918894,107120.0,107110.0,1.22651597]
[1734434908190,0.54918894,107120.0,107110.0,0.66848818]
[1734434908487,0.54918894,107120.0,107110.0,0.61353925]
[1734434908685,0.54918894,107120.0,107110.0,0.05551804]
[1734434908888,0.54918894,107120.0,107110.0,0.66848818]
[1734434909098,0.49433397,107120.0,107110.0,0.66848818]
[1734434909596,0.48852145,107120.0,107110.0,0.66848818]
[1734434910398,0.48852145,107120.0,107110.0,0.65973961]
[1734434910597,0.54337642,107120.0,107110.0,0.65973961]
[1734434911199,0.48852145,107120.0,107110.0,0.65973961]
[1734434911991,0.54337642,107120.0,107110.0,0.65973961]
[1734434912498,0.54337642,107120.0,107110.0,0.6684882]
[1734434913003,0.48852145,107120.0,107110.0,0.6684882]
[1734434913693,0.48852145,107120.0,107110.0,1.22665985]
[1734434914107,0.54337642,107120.0,107110.0,0.04676947]
[1734434914602,0.5013833,107120.0,107110.0,0.6684882]
[1734434914793,0.5013833,107120.0,107110.0,1.22670975]
[1734434914993,0.5013833,107120.0,107110.0,0.6684882]
[1734434916297,0.5013833,107120.0,107110.0,1.22674287]
[1734434916497,0.5013833,107120.0,107110.0,0.65973961]
[1734434916704,0.5013833,107120.0,107110.0,0.04676947]
[1734434917099,0.5013833,107120.0,107110.0,8.947e-05]
[1734434926507,0.5013833,107120.0,107110.0,0.50268349]
[1734434928505,0.5013833,107120.0,107110.0,8.947e-05]
[1734434928909,0.5013833,107120.0,107110.0,0.50268349]
[1734434931314,0.5013833,107120.0,107110.0,8.947e-05]
[1734434935619,0.5013833,107120.0,107100.0,0.35355915]
[1734434935620,0.046683,107110.0,107100.0,0.35355915]
[1734434935817,0.46233797,107110.0,107100.0,0.35355915]
[1734434936512,0.046687,107100.0,107090.0,0.16624689]
[1734434936710,0.46234197,107100.0,107090.0,0.16632604]
[1734434940113,0.10154197,107100.0,107090.0,0.16632604]
[1734434940328,0.10154197,107100.0,107090.0,0.72458071]
[1734434941413,0.10154197,107100.0,107090.0,0.7333293]
[1734434941613,0.10154197,107100.0,107090.0,1.34629944]
[1734434942423,0.10154197,107100.0,107090.0,1.3276785]
[1734434942726,0.454166,107110.0,107090.0,0.76942383]
[1734434943025,0.407483,107110.0,107100.0,0.5581224]
[1734434943226,0.407483,107110.0,107100.0,0.56687099]
[1734434943622,0.407483,107110.0,107100.0,0.5581224]
[1734434944024,0.54779294,107110.0,107100.0,0.5581224]
[1734434945030,0.58122866,107110.0,107100.0,0.5581224]
[1734434945229,0.046687,107100.0,107090.0,1.31879764]
[1734434945422,0.15639694,107100.0,107090.0,0.76067524]
[1734434945622,0.15639694,107100.0,107090.0,0.76942513]
[1734434946431,0.10154197,107100.0,107090.0,0.76942513]
[1734434947434,0.10154197,107100.0,107090.0,0.70629111]
[1734434948934,0.046687,107100.0,107090.0,0.76114608]
[1734434949127,0.10154197,107100.0,107090.0,0.70629111]
[1734434951137,0.046687,107100.0,107090.0,0.70629111]
[1734434951429,0.046683,107110.0,107100.0,0.046687]
[1734434951626,0.10153797,107110.0,107100.0,0.70099892]
[1734434951826,0.46233797,107110.0,107100.0,1.22853236]
[1734434952023,0.46233797,107110.0,107100.0,0.55863344]
[1734434952730,0.046687,107100.0,107090.0,1.32079957]
[1734434952927,0.10154197,107100.0,107090.0,1.32079957]
[1734434953431,0.046687,107100.0,107090.0,1.68166958]
[1734434953628,0.046687,107100.0,107090.0,1.13171461]
[1734434954233,0.046687,107100.0,107090.0,0.77091461]
[1734434954437,0.046687,107100.0,107090.0,1.32958395]
[1734434954636,0.046687,107100.0,107090.0,1.06717244]
[1734434954831,0.046687,107100.0,107090.0,1.32958395]
[1734434955135,0.046687,107100.0,107090.0,1.32083447]
[1734434955341,0.046687,107100.0,107090.0,1.32958395]
[1734434955751,0.10154197,107100.0,107090.0,1.32958395]
[1734434956046,0.10154197,107100.0,107090.0,1.32083447]
[1734434956248,0.10154197,107100.0,107090.0,0.70637244]
[1734434956748,0.10154197,107100.0,107090.0,0.71512192]
[1734434956944,0.10154197,107100.0,107090.0,1.32958395]
[1734434957137,0.10154197,107100.0,107090.0,0.70637244]
[1734434957540,0.046687,107100.0,107090.0,0.70637244]
[1734434958247,0.046687,107100.0,107090.0,0.71512192]
[1734434958449,0.046687,107100.0,107090.0,0.70637244]
[1734434958652,0.10154197,107100.0,107090.0,0.70637244]
[1734434959338,0.046687,107100.0,107090.0,0.70637244]
[1734434960550,0.46233997,107110.0,107100.0,0.046687]
[1734434968657,0.46233997,107110.0,107100.0,0.60535634]
[1734434969046,0.46233997,107110.0,107100.0,0.61410582]
[1734434969450,0.46233997,107110.0,107100.0,0.60535634]
[1734434970947,0.10153997,107110.0,107100.0,0.61410582]
[1734434971350,0.46233997,107110.0,107100.0,0.61410582]
[1734434971653,0.10153997,107110.0,107100.0,0.60535634]
[1734434972745,0.46233997,107110.0,107100.0,0.60535634]
[1734434972953,0.52553997,107110.0,107100.0,0.60535634]
[1734434975248,0.16473997,107110.0,107100.0,0.60535634]
[1734434975653,0.52553997,107110.0,107100.0,0.60535634]
[1734434976055,0.19503997,107110.0,107100.0,0.60535634]
[1734434976267,0.55583997,107110.0,107100.0,0.60535634]
[1734434976756,0.55583997,107110.0,107100.0,0.046687]
[1734434977555,0.55583997,107110.0,107100.0,0.60535634]
[1734434977854,0.49604565,107130.0,107120.0,0.046679]
[1734434978053,0.58794565,107130.0,107120.0,0.046679]
[1734434978852,0.64280062,107130.0,107120.0,0.046679]
[1734434981757,0.58794565,107130.0,107120.0,0.046679]
[1734434994361,0.53309068,107130.0,107120.0,0.046679]
[1734434994563,0.58794565,107130.0,107120.0,0.046679]
[1734435002270,0.046679,107120.0,107110.0,0.10832386]
[1734435002475,0.51718894,107120.0,107110.0,0.10832386]
[1734435002675,0.51718894,107120.0,107110.0,0.079183]
[1734435003674,0.51718894,107120.0,107110.0,0.046683]
[1734435004093,0.046683,107110.0,107100.0,0.10206529]
[1734435004275,0.046687,107100.0,107090.0,0.07976815]
[1734435004476,0.51719694,107100.0,107090.0,0.07976815]
[1734435004672,0.51719694,107100.0,107090.0,7.915e-05]
[1734435005373,0.57205191,107100.0,107090.0,7.915e-05]
[1734435005583,0.51719694,107100.0,107090.0,7.915e-05]
[1734435009079,0.54164965,107100.0,107090.0,7.915e-05]
[1734435009982,0.54171956,107100.0,107090.0,7.915e-05]
[1734435010789,0.59657453,107100.0,107090.0,7.915e-05]
[1734435010979,0.54171956,107100.0,107090.0,7.915e-05]
[1734435011286,0.59657453,107100.0,107090.0,7.915e-05]
[1734435011785,0.54171956,107100.0,107090.0,7.915e-05]
[1734435012886,0.59657453,107100.0,107090.0,7.915e-05]
[1734435013785,0.046696,107080.0,107060.0,0.05574194]
[1734435014090,0.4075,107070.0,107060.0,0.05574194]
[1734435014390,0.46235497,107070.0,107060.0,0.05574194]
[1734435014786,0.46235497,107070.0,107060.0,0.05584301]
[1734435015101,0.51720994,107070.0,107060.0,0.00010107]
[1734435015279,0.46235497,107070.0,107060.0,0.00010107]
[1734435015574,0.51720994,107070.0,107060.0,0.00010107]
[1734435016689,0.54830994,107070.0,107060.0,0.00010107]
[1734435017198,0.58010994,107070.0,107060.0,0.00010107]
[1734435019786,0.61140994,107070.0,107060.0,0.00010107]
[1734435025189,0.61140994,107070.0,107060.0,0.47061101]
[1734435025190,0.0467,107070.0,107060.0,0.47061101]
[1734435025394,0.0467,107070.0,107060.0,0.46246104]
[1734435025591,0.41565497,107080.0,107060.0,0.54961601]
[1734435025798,0.46235297,107080.0,107070.0,0.0467]
[1734435026603,0.51720794,107080.0,107070.0,0.0467]
[1734435026795,0.46235297,107080.0,107070.0,0.0467]
[1734435028397,0.10155297,107080.0,107070.0,0.0467]
[1734435031005,0.15640794,107080.0,107070.0,0.0467]
[1734435032997,0.15640794,107080.0,107070.0,0.08]
[1734435033193,0.10155297,107080.0,107070.0,0.08]
[1734435033397,0.10155297,107080.0,107070.0,0.1101]
[1734435033794,0.15640794,107080.0,107070.0,0.1101]
[1734435036996,0.51720794,107080.0,107070.0,0.1101]
[1734435037498,0.51720794,107080.0,107070.0,0.08]
[1734435042997,0.46235297,107080.0,107070.0,0.08]
[1734435044104,0.51720794,107080.0,107070.0,0.08]
[1734435045808,0.407498,107080.0,107070.0,0.08]
[1734435046009,0.51720794,107080.0,107070.0,0.08]
[1734435046211,0.15640794,107080.0,107070.0,0.08]
[1734435046713,0.51720794,107080.0,107060.0,0.47337174]
[1734435046913,0.05485497,107070.0,107060.0,0.47337174]
[1734435047708,0.0467,107070.0,107060.0,0.52016775]
[1734435048013,0.16395297,107080.0,107070.0,0.0467]
[1734435049697,0.109098,107080.0,107070.0,0.0467]
[1734435049903,0.16395297,107080.0,107070.0,0.0467]
[1734435050606,0.52475297,107080.0,107070.0,0.0467]
[1734435050797,0.16395297,107080.0,107070.0,0.0467]
[1734435051003,0.52475297,107080.0,107070.0,0.0467]
[1734435051203,0.57960794,107080.0,107070.0,0.0467]
[1734435054411,0.61060794,107080.0,107070.0,0.0467]
[1734435061320,0.52760793,107080.0,107070.0,0.0467]
[1734435061521,0.61060794,107080.0,107070.0,0.0467]
[1734435066421,0.0467,107070.0,107060.0,0.04702891]
[1734435066724,0.51720994,107070.0,107060.0,0.61126692]
[1734435066925,0.51720994,107070.0,107060.0,9.101e-05]
[1734435068527,0.46235497,107070.0,107060.0,9.101e-05]
[1734435070341,0.46235497,107070.0,107060.0,0.04679601]
[1734435070720,0.10155497,107070.0,107060.0,0.04679601]
[1734435076125,0.0467,107070.0,107060.0,0.04679601]
[1734435076330,0.0467,107070.0,107060.0,0.10165098]
[1734435076723,0.0467,107070.0,107060.0,0.66050695]
[1734435077029,0.52475397,107080.0,107070.0,0.0467]
[1734435078428,0.109099,107080.0,107070.0,0.0467]
[1734435078727,0.16395397,107080.0,107070.0,0.0467]
[1734435080429,0.16395397,107080.0,107070.0,0.4075]
[1734435083922,0.16395397,107080.0,107070.0,0.43439978]
[1734435084128,0.16395397,107080.0,107070.0,0.07359978]
[1734435084530,0.21880894,107080.0,107070.0,0.07359978]
[1734435085032,0.57960894,107080.0,107070.0,0.0467]
[1734435085232,0.61130894,107080.0,107070.0,0.0467]
[1734435088129,0.55645397,107080.0,107070.0,0.0467]
[1734435088527,0.16395397,107080.0,107070.0,0.0467]
[1734435089934,0.57960894,107080.0,107070.0,0.0467]
[1734435094335,0.0467,107070.0,107060.0,0.63187435]
[1734435094542,0.51720994,107070.0,107060.0,9.101e-05]
[1734435094742,0.72163993,107070.0,107060.0,9.101e-05]
[1734435096733,0.66678496,107070.0,107060.0,9.101e-05]
[1734435098234,0.61192999,107070.0,107060.0,0.04679601]
[1734435098433,0.66678496,107070.0,107060.0,0.04679601]
[1734435102944,0.63488496,107070.0,107060.0,0.04679601]
[1734435103141,0.21922999,107070.0,107060.0,0.04679601]
[1734435103350,0.27408496,107070.0,107060.0,0.04679601]
[1734435107647,0.63488496,107070.0,107060.0,0.04679601]
[1734435107842,0.66628496,107070.0,107060.0,0.04679601]
[1734435110644,0.72113993,107070.0,107060.0,9.101e-05]
[1734435115956,0.77892537,107070.0,107060.0,9.101e-05]
[1734435116453,0.812403,107070.0,107060.0,9.101e-05]
[1734435118249,0.58002999,107070.0,107060.0,0.04679601]
[1734435118452,0.21922999,107070.0,107060.0,0.04679601]
[1734435118755,0.58002999,107070.0,107060.0,0.04679601]
[1734435119149,0.66377768,107070.0,107060.0,0.04679601]
[1734435124855,0.66377768,107070.0,107060.0,0.65797192]
[1734435125062,0.66377768,107070.0,107060.0,0.07552152]
[1734435125258,0.30297768,107070.0,107060.0,0.07552152]
[1734435125856,0.13044769,107070.0,107060.0,0.07552152]
[1734435127157,0.0467,107070.0,107060.0,0.43632152]
[1734435128850,0.0467,107070.0,107060.0,1.04749743]
[1734435129357,0.0467,107070.0,107060.0,0.43632152]
[1734435134165,0.13044769,107070.0,107060.0,0.43632152]
[1734435134364,0.13044769,107070.0,107060.0,0.99435526]
[1734435135667,0.08374769,107070.0,107060.0,0.99435526]
[1734435136268,0.08374769,107070.0,107060.0,1.60553117]
[1734435136672,0.08374769,107070.0,107060.0,0.99435526]
[1734435137172,0.08374769,107070.0,107060.0,1.60553117]
[1734435137365,0.08374769,107070.0,107060.0,0.99435526]
[1734435137561,0.55364569,107080.0,107070.0,0.0467]
[1734435138071,0.57977348,107080.0,107070.0,0.0467]
[1734435139976,0.469898,107080.0,107070.0,0.0467]
[1734435140270,0.52483574,107080.0,107070.0,0.0467]
[1734435140871,0.11733774,107080.0,107070.0,0.0467]
[1734435141075,0.11733774,107080.0,107070.0,0.63483374]
[1734435141572,0.11733774,107080.0,107070.0,0.0768]
[1734435141761,0.57977148,107080.0,107070.0,0.0768]
[1734435141966,0.52483374,107080.0,107070.0,0.0768]
[1734435142167,0.16403374,107080.0,107070.0,0.0768]
[1734435142362,0.52483374,107080.0,107070.0,0.0768]
[1734435142676,0.16403374,107080.0,107070.0,0.0768]
[1734435142867,0.57977148,107080.0,107070.0,0.0768]
[1734435143070,0.21897148,107080.0,107070.0,0.0768]
[1734435143271,0.57977148,107080.0,107070.0,0.0768]
[1734435144379,0.52483374,107080.0,107070.0,0.0768]
[1734435144973,0.57977148,107080.0,107070.0,0.0768]
[1734435145381,0.52483374,107080.0,107070.0,0.0768]
[1734435146698,0.57977148,107080.0,107070.0,0.0768]
[1734435146868,0.57977148,107080.0,107070.0,0.0467]
[1734435147072,0.52483374,107080.0,107070.0,0.0467]
[1734435147473,0.16403374,107080.0,107070.0,0.0467]
[1734435147975,0.52483374,107080.0,107070.0,0.0467]
[1734435148177,0.16403374,107080.0,107070.0,0.0467]
[1734435148484,0.21897148,107080.0,107070.0,0.0467]
[1734435148982,0.57977148,107080.0,107070.0,0.0467]
[1734435149568,0.21897148,107080.0,107070.0,0.0467]
[1734435150167,0.57977148,107080.0,107070.0,0.0467]
[1734435150380,0.0624,107080.0,107070.0,0.10163774]
[1734435150581,0.3939,107090.0,107080.0,0.046696]
[1734435150582,0.3608,107090.0,107080.0,0.046696]
[1734435150784,0.16383967,107100.0,107080.0,0.46243374]
[1734435150982,0.16383967,107100.0,107090.0,0.046692]
[1734435151375,0.52463967,107100.0,107090.0,0.046692]
[1734435151576,0.57957741,107100.0,107090.0,0.046692]
[1734435152475,0.63451515,107100.0,107090.0,0.046692]
[1734435152888,0.57957741,107100.0,107090.0,0.046692]
[1734435155591,0.046695,107090.0,107080.0,0.046694]
[1734435155792,0.46243274,107090.0,107080.0,0.046694]
[1734435156088,0.49119215,107090.0,107080.0,0.046694]
[1734435156992,0.046696,107080.0,107070.0,0.046699]
[1734435157191,0.55409315,107080.0,107070.0,0.046699]
[1734435157593,0.19329315,107080.0,107070.0,0.046699]
[1734435157893,0.55409315,107080.0,107060.0,0.94309083]
[1734435158095,0.55409315,107080.0,107070.0,0.046699]
[1734435158296,0.470396,107080.0,107070.0,0.046699]
[1734435158999,0.470396,107080.0,107070.0,0.04679252]
[1734435160286,0.109596,107080.0,107070.0,0.04679252]
[1734435161599,0.109596,107080.0,107070.0,0.40759252]
[1734435161801,0.109596,107080.0,107070.0,0.04679252]
[1734435162692,0.109596,107080.0,107070.0,0.40759252]
[1734435163095,0.046695,107090.0,107080.0,0.046696]
[1734435163291,0.046695,107090.0,107080.0,0.407496]
[1734435164401,0.55609908,107100.0,107090.0,0.046692]
[1734435165202,0.47240193,107100.0,107090.0,0.046692]
[1734435169402,0.11160193,107100.0,107090.0,0.046692]